fUSD/lending_fUSD_20240327
["ID","MTS","AMOUNT","RATE_DAILY","PERIOD"]
[320722120,1711534949784,-500.0,0.00054794,120]
[320722121,1711534949809,-500.0,0.00054794,120]
[320722122,1711534949834,-622.17,0.00054794,120]
[320722123,1711534949859,-500.0,0.00054794,120]
[320722124,1711534949882,-500.0,0.00054794,120]
[320722125,1711534949908,-509.8050617,0.00054794,120]
[320722126,1711534949932,-500.0,0.00054794,120]
[320722127,1711534949959,-642.69,0.00054794,120]
[320722128,1711534949986,-1243.71,0.00054794,120]
[320722129,1711534950012,-575.73,0.00054794,120]
[320722130,1711534950038,-500.0,0.00054794,120]
[320722131,1711534950063,-500.0,0.00054794,120]
[320722132,1711534950086,-500.0,0.00054794,120]
[320722133,1711534950110,-500.0,0.00054794,120]
[320722134,1711534950133,-666.08,0.00054794,120]
[320722135,1711534950158,-500.0,0.00054794,120]
[320722136,1711534950181,-209.18835168,0.00054794,120]
[320722137,1711534950206,-500.0,0.00054794,120]
[320722138,1711534950230,-500.0,0.00054794,120]
[320722139,1711534950254,-500.0,0.00054794,120]
[320722140,1711534950279,-500.0,0.00054794,120]
[320722141,1711534950302,-500.0,0.00054794,120]
[320722142,1711534950325,-500.0,0.00054794,120]
[320722143,1711534950348,-500.0,0.00054794,120]
[320722144,1711534950371,-500.0,0.00054794,120]
[320722145,1711534950394,-693.91,0.00054794,120]
[320722146,1711534950417,-500.0,0.00054794,120]
[320722147,1711534950441,-500.0,0.00054794,120]
[320722148,1711534950465,-2273.07,0.00054794,120]
[320722149,1711534950490,-500.0,0.00054794,120]
[320722150,1711534950514,-500.0,0.00054794,120]
[320722151,1711534950552,-500.0,0.00054794,120]
[320722152,1711534950578,-1005.86,0.00054794,120]
[320722153,1711534950603,-500.0,0.00054794,120]
[320722154,1711534950627,-500.0,0.00054794,120]
[320722155,1711534950651,-500.0,0.00054794,120]
[320722156,1711534950675,-831.4,0.00054794,120]
[320722157,1711534950699,-500.0,0.00054794,120]
[320722158,1711534950722,-500.0,0.00054794,120]
[320722159,1711534950746,-540.95,0.00054794,120]
[320722160,1711534950774,-500.0,0.00054794,120]
[320722161,1711534950801,-500.0,0.00054794,120]
[320722162,1711534950824,-500.0,0.00054794,120]
[320722163,1711534950848,-500.0,0.00054794,120]
[320722164,1711534950871,-503.62782108,0.00054794,120]
[320722165,1711534950894,-500.0,0.00054794,120]
[320722166,1711534950918,-500.0,0.00054794,120]
[320722167,1711534950944,-500.0,0.00054794,120]
[320722168,1711534950967,-500.0,0.00054794,120]
[320722169,1711534950991,-528.79,0.00054794,120]
[320722170,1711534951015,-500.0,0.00054794,120]
[320722171,1711534951041,-399.65,0.00054794,120]
[320722172,1711534951065,-500.0,0.00054794,120]
[320722173,1711534951089,-500.0,0.00054794,120]
[320722174,1711534951113,-500.0,0.00054794,120]
[320722175,1711534951136,-500.0,0.00054794,120]
[320722176,1711534951160,-500.0,0.00054794,120]
[320722177,1711534951410,-515.08,0.00054794,120]
[320722178,1711534951437,-500.0,0.00054794,120]
[320722179,1711534951462,-500.0,0.00054794,120]
[320722180,1711534951488,-500.0,0.00054794,120]
[320722181,1711534951513,-500.0,0.00054794,120]
[320722182,1711534951541,-1147.54,0.00054794,120]
[320722183,1711534951563,-500.0,0.00054794,120]
[320722184,1711534951587,-1265.74,0.00054794,120]
[320722185,1711534951610,-500.0,0.00054794,120]
[320722186,1711534951633,-500.0,0.00054794,120]
[320722187,1711534951656,-500.0,0.00054794,120]
[320722188,1711534951680,-500.0,0.00054794,120]
[320722189,1711534951703,-500.0,0.00054794,120]
[320722190,1711534951727,-706.34,0.00054794,120]
[320722191,1711534951750,-500.0,0.00054794,120]
[320722192,1711534951778,-500.0,0.00054794,120]
[320722193,1711534951805,-500.0,0.00054794,120]
[320722194,1711534951829,-500.0,0.00054794,120]
[320722195,1711534951855,-627.88,0.00054794,120]
[320722196,1711534951881,-1161.61,0.00054794,120]
[320722197,1711534951906,-500.0,0.00054794,120]
[320722198,1711534951930,-500.0,0.00054794,120]
[320722199,1711534951953,-500.0,0.00054794,120]
[320722200,1711534951979,-500.0,0.00054794,120]
[320722201,1711534952003,-800.95,0.00054794,120]
[320722202,1711534952028,-500.0,0.00054794,120]
[320722203,1711534952053,-500.0,0.00054794,120]
[320722204,1711534952078,-502.38864528,0.00054794,120]
[320722205,1711534952102,-500.0,0.00054794,120]
[320722206,1711534952125,-500.0,0.00054794,120]
[320722207,1711534952148,-543.08,0.00054794,120]
[320722208,1711534952171,-500.0,0.00054794,120]
[320722209,1711534952195,-691.61,0.00054794,120]
[320722210,1711534952218,-500.0,0.00054794,120]
[320722211,1711534952241,-500.0,0.00054794,120]
[320722212,1711534952264,-500.0,0.00054794,120]
[320722213,1711534952289,-451.82930917,0.00054794,120]
[320722214,1711534952311,-500.0,0.00054794,120]
[320722215,1711534952334,-500.0,0.00054794,120]
[320722216,1711534952357,-889.53,0.00054794,120]
[320722217,1711534952380,-500.0,0.00054794,120]
[320722218,1711534952403,-500.0,0.00054794,120]
[320722219,1711534952426,-500.0,0.00054794,120]
[320722220,1711534952450,-500.0,0.00054794,120]
[320722221,1711534952482,-531.53,0.00054794,120]
[320722222,1711534952507,-705.52,0.00054794,120]
[320722223,1711534952535,-502.79464683,0.00054794,120]
[320722224,1711534952560,-520.48688602,0.00054794,120]
[320722225,1711534952584,-500.0,0.00054794,120]
[320722226,1711534952607,-379.85,0.00054794,120]
[320722227,1711534952631,-500.0,0.00054794,120]
[320722228,1711534952656,-735.85,0.00054794,120]
[320722229,1711534952680,-500.0,0.00054794,120]
[320722230,1711534952703,-500.0,0.00054794,120]
[320722231,1711534952727,-500.0,0.00054794,120]
[320722232,1711534952750,-500.0,0.00054794,120]
[320722233,1711534952776,-500.0,0.00054794,120]
[320722234,1711534952800,-500.0,0.00054794,120]
[320722235,1711534952824,-1125.85,0.00054794,120]
[320722236,1711534952848,-583.89,0.00054794,120]
[320722237,1711534952872,-500.0,0.00054794,120]
[320722238,1711534952897,-500.0,0.00054794,120]
[320722239,1711534952925,-500.0,0.00054794,120]
[320722240,1711534952948,-500.0,0.00054794,120]
[320722241,1711534952971,-500.0,0.00054794,120]
[320722242,1711534952997,-500.0,0.00054794,120]
[320722243,1711534953026,-500.0,0.00054794,120]
[320722244,1711534953050,-500.0,0.00054794,120]
[320722245,1711534953073,-713.41,0.00054794,120]
[320722246,1711534953097,-1936.45,0.00054794,120]
[320722247,1711534953123,-500.0,0.00054794,120]
[320722248,1711534953147,-500.0,0.00054794,120]
[320722249,1711534953171,-500.0,0.00054794,120]
[320722250,1711534953195,-500.0,0.00054794,120]
[320722251,1711534953218,-509.54233857,0.00054794,120]
[320722252,1711534953243,-500.0,0.00054794,120]
[320722253,1711534953268,-500.0,0.00054794,120]
[320722254,1711534953294,-500.0,0.00054794,120]
[320722255,1711534953317,-500.0,0.00054794,120]
[320722256,1711534953341,-500.0,0.00054794,120]
[320722257,1711534953365,-500.0,0.00054794,120]
[320722258,1711534953387,-500.0,0.00054794,120]
[320722259,1711534953411,-500.0,0.00054794,120]
[320722260,1711534953435,-500.0,0.00054794,120]
[320722261,1711534953459,-559.88549864,0.00054794,120]
[320722262,1711534953482,-1159.26,0.00054794,120]
[320722263,1711534953506,-500.0,0.00054794,120]
[320722264,1711534953533,-151.0,0.00054794,120]
[320722265,1711534953557,-500.0,0.00054794,120]
[320722266,1711534953580,-500.0,0.00054794,120]
[320722267,1711534953602,-500.0,0.00054794,120]
[320722268,1711534953625,-285.549847,0.00054794,120]
[320722269,1711534953647,-500.0,0.00054794,120]
[320722270,1711534953670,-1078.34,0.00054794,120]
[320722271,1711534953695,-500.0,0.00054794,120]
[320722272,1711534953719,-500.0,0.00054794,120]
[320722273,1711534953744,-646.22,0.00054794,120]
[320722274,1711534953768,-500.0,0.00054794,120]
[320722275,1711534953793,-500.0,0.00054794,120]
[320722276,1711534953816,-500.0,0.00054794,120]
[320722277,1711534953839,-500.0,0.00054794,120]
[320722278,1711534953861,-500.0,0.00054794,120]
[320722279,1711534953884,-500.0,0.00054794,120]
[320722280,1711534953907,-626.23,0.00054794,120]
[320722281,1711534953930,-892.32,0.00054794,120]
[320722282,1711534954118,-500.0,0.00054794,120]
[320722283,1711534954148,-692.25,0.00054794,120]
[320722284,1711534954171,-500.0,0.00054794,120]
[320722285,1711534954195,-151.0,0.00054794,120]
[320722286,1711534954218,-500.0,0.00054794,120]
[320722287,1711534954241,-500.0,0.00054794,120]
[320722288,1711534954264,-500.0,0.00054794,120]
[320722289,1711534954290,-500.0,0.00054794,120]
[320722290,1711534954315,-500.0,0.00054794,120]
[320722291,1711534954338,-151.0,0.00054794,120]
[320722292,1711534954361,-515.27,0.00054794,120]
[320722293,1711534954385,-500.0,0.00054794,120]
[320722294,1711534954408,-1018.65,0.00054794,120]
[320722295,1711534954433,-500.0,0.00054794,120]
[320722296,1711534954457,-509.84,0.00054794,120]
[320722297,1711534954481,-500.0,0.00054794,120]
[320722298,1711534954504,-500.0,0.00054794,120]
[320722299,1711534954531,-500.0,0.00054794,120]
[320722300,1711534954554,-767.03,0.00054794,120]
[320722301,1711534954582,-500.0,0.00054794,120]
[320722302,1711534954605,-500.0,0.00054794,120]
[320722303,1711534954628,-500.0,0.00054794,120]
[320722304,1711534954651,-500.0,0.00054794,120]
[320722305,1711534954674,-500.0,0.00054794,120]
[320722306,1711534954698,-500.0,0.00054794,120]
[320722307,1711534954720,-1156.51,0.00054794,120]
[320722308,1711534954742,-500.0,0.00054794,120]
[320722309,1711534954765,-500.0,0.00054794,120]
[320722310,1711534954789,-500.0,0.00054794,120]
[320722311,1711534954811,-500.0,0.00054794,120]
[320722312,1711534954833,-508.66322346,0.00054794,120]
[320722313,1711534954857,-500.0,0.00054794,120]
[320722314,1711534954879,-360.78982427,0.00054794,120]
[320722315,1711534954902,-500.0,0.00054794,120]
[320722316,1711534954924,-500.0,0.00054794,120]
[320722317,1711534954947,-500.0,0.00054794,120]
[320722318,1711534954970,-500.0,0.00054794,120]
[320722319,1711534954994,-581.85,0.00054794,120]
[320722320,1711534955021,-556.88,0.00054794,120]
[320722321,1711534955045,-500.0,0.00054794,120]
[320722322,1711534955068,-500.0,0.00054794,120]
[320722323,1711534955095,-500.0,0.00054794,120]
[320722324,1711534955120,-500.0,0.00054794,120]
[320722325,1711534955144,-500.0,0.00054794,120]
[320722326,1711534955169,-500.0,0.00054794,120]
[320722327,1711534955194,-624.57,0.00054794,120]
[320722328,1711534955219,-500.0,0.00054794,120]
[320722329,1711534955243,-335.37387455,0.00054794,120]
[320722330,1711534955267,-451.58,0.00054794,120]
[320722331,1711534955293,-500.0,0.00054794,120]
[320722332,1711534955318,-500.0,0.00054794,120]
[320722333,1711534955341,-1279.22,0.00054794,120]
[320722334,1711534955364,-1386.47,0.00054794,120]
[320722335,1711534955395,-500.0,0.00054794,120]
[320722336,1711534955419,-500.0,0.00054794,120]
[320722337,1711534955448,-500.0,0.00054794,120]
[320722338,1711534955472,-934.45,0.00054794,120]
[320722339,1711534955496,-500.0,0.00054794,120]
[320722340,1711534955527,-500.0,0.00054794,120]
[320722341,1711534955553,-264.56591613,0.00054794,120]
[320722342,1711534955577,-500.0,0.00054794,120]
[320722343,1711534955602,-500.0,0.00054794,120]
[320722344,1711534955626,-500.0,0.00054794,120]
[320722345,1711534955650,-500.0,0.00054794,120]
[320722346,1711534955675,-685.17,0.00054794,120]
[320722347,1711534955699,-1464.03,0.00054794,120]
[320722348,1711534955723,-554.52859994,0.00054794,120]
[320722349,1711534955747,-500.0,0.00054794,120]
[320722350,1711534955775,-688.41,0.00054794,120]
[320722351,1711534955805,-498.44389385,0.00054794,120]
[320722352,1711534955829,-500.0,0.00054794,120]
[320722353,1711534955853,-500.0,0.00054794,120]
[320722354,1711534955876,-2413.55,0.00054794,120]
[320722355,1711534955900,-151.0,0.00054794,120]
[320722356,1711534955927,-500.0,0.00054794,120]
[320722357,1711534955956,-500.0,0.00054794,120]
[320722358,1711534955981,-500.0,0.00054794,120]
[320722359,1711534956004,-500.0,0.00054794,120]
[320722360,1711534956031,-500.0,0.00054794,120]
[320722361,1711534956055,-681.79,0.00054794,120]
[320722362,1711534956082,-635.46,0.00054794,120]
[320722363,1711534956110,-389.58310809,0.00054794,120]
[320722364,1711534956134,-500.0,0.00054794,120]
[320722365,1711534956157,-371.23448409,0.00054794,120]
[320722366,1711534956182,-520.11568073,0.00054794,120]
[320722367,1711534956205,-862.64,0.00054794,120]
[320722368,1711534956228,-506.24247577,0.00054794,120]
[320722369,1711534956252,-500.0,0.00054794,120]
[320722370,1711534956278,-500.0,0.00054794,120]
[320722371,1711534956306,-500.0,0.00054794,120]
[320722372,1711534956330,-500.0,0.00054794,120]
[320722373,1711534956354,-500.0,0.00054794,120]
[320722374,1711534956377,-151.0,0.00054794,120]
[320722375,1711534956402,-500.0,0.00054794,120]
[320722376,1711534956426,-802.34,0.00054794,120]
[320722377,1711534956451,-500.0,0.00054794,120]
[320722378,1711534956476,-334.65253752,0.00054794,120]
[320722379,1711534956501,-500.0,0.00054794,120]
[320722380,1711534956527,-627.65,0.00054794,120]
[320722381,1711534956552,-500.0,0.00054794,120]
[320722382,1711534956577,-500.0,0.00054794,120]
[320722383,1711534956601,-500.0,0.00054794,65]
[320722384,1711534956629,-8869.81,0.00054794,120]
[320722385,1711534956654,-500.0,0.00054794,120]
[320722386,1711534956679,-609.68,0.00054794,120]
[320722387,1711534956704,-500.0,0.00054794,120]
[320722388,1711534956898,-551.06,0.00054794,120]
[320722389,1711534956922,-500.0,0.00054794,120]
[320722390,1711534956947,-1000.0,0.00054794,120]
[320722391,1711534956971,-500.0,0.00054794,120]
[320722392,1711534956999,-500.0,0.00054794,120]
[320722393,1711534957025,-633.14,0.00054794,120]
[320722394,1711534957049,-500.0,0.00054794,120]
[320722395,1711534957074,-500.0,0.00054794,120]
[320722396,1711534957098,-500.0,0.00054794,120]
[320722397,1711534957121,-613.71,0.00054794,120]
[320722398,1711534957144,-6026.9,0.00054794,120]
[320722399,1711534957167,-500.0,0.00054794,120]
[320722400,1711534957190,-746.78,0.00054794,120]
[320722401,1711534957213,-1184.91,0.00054794,120]
[320722402,1711534957237,-500.0,0.00054794,120]
[320722403,1711534957261,-500.0,0.00054794,120]
[320722404,1711534957288,-500.0,0.00054794,120]
[320722405,1711534957311,-1060.45,0.00054794,120]
[320722406,1711534957337,-500.0,0.00054794,120]
[320722407,1711534957360,-16757.05,0.00054794,120]
[320722408,1711534957383,-500.0,0.00054794,120]
[320722409,1711534957406,-7417.14,0.00054794,120]
[320722410,1711534957431,-1803.38,0.00054794,120]
[320722411,1711534957454,-500.0,0.00054794,120]
[320722412,1711534957477,-500.0,0.00054794,120]
[320722413,1711534957501,-858.54,0.00054794,120]
[320722414,1711534957527,-726.08,0.00054794,120]
[320722415,1711534957550,-500.0,0.00054794,120]
[320722416,1711534957574,-500.0,0.00054794,120]
[320722417,1711534957597,-991.72,0.00054794,120]
[320722418,1711534957620,-310.0,0.00054794,120]
[320722419,1711534957644,-500.0,0.00054794,120]
[320722420,1711534957668,-620.02892298,0.00054794,120]
[320722421,1711534957691,-500.0,0.00054794,120]
[320722422,1711534957715,-1414.99,0.00054794,120]
[320722423,1711534957739,-4417.9,0.00054794,120]
[320722424,1711534957763,-2128.67,0.00054794,120]
[320722425,1711534957787,-281.621109,0.00054794,120]
[320722426,1711534957810,-2862.22,0.00054794,120]
[320722427,1711534957833,-500.0,0.00054794,120]
[320722428,1711534957856,-500.0,0.00054794,120]
[320722429,1711534957878,-1968.88,0.00054794,120]
[320722430,1711534957901,-818.89,0.00054794,120]
[320722431,1711534957924,-1168.18,0.00054794,120]
[320722432,1711534957946,-1108.18,0.00054794,120]
[320722433,1711534957969,-14506.98,0.00054794,120]
[320722434,1711534957993,-500.0,0.00054794,120]
[320722435,1711534958016,-500.0,0.00054794,120]
[320722436,1711534958042,-8284.9,0.00054794,120]
[320722437,1711534958065,-500.0,0.00054794,85]
[320722438,1711534958089,-301.85,0.00054794,120]
[320722439,1711534958112,-500.0,0.00054794,120]
[320722440,1711534958138,-554.82,0.00054794,120]
[320722441,1711534958165,-500.0,0.00054794,120]
[320722442,1711534958187,-500.0,0.00054794,120]
[320722443,1711534958210,-500.0,0.00054794,120]
[320722444,1711534958233,-507.6178546,0.00054794,120]
[320722445,1711534958255,-566.32141082,0.00054794,120]
[320722446,1711534958278,-1913.66,0.00054794,120]
[320722447,1711534958301,-2052.46,0.00054794,120]
[320722448,1711534958323,-500.0,0.00054794,120]
[320722449,1711534958347,-1499.99,0.00054794,120]
[320722450,1711534958369,-500.0,0.00054794,120]
[320722451,1711534958393,-5649.38,0.00054794,120]
[320722452,1711534958416,-1474.18,0.00054794,120]
[320722453,1711534958439,-957.6,0.00054794,120]
[320722454,1711534958463,-500.0,0.00054794,120]
[320722455,1711534958486,-10232.26,0.00054794,120]
[320722456,1711534958511,-500.0,0.00054794,120]
[320722457,1711534958536,-1278.57,0.00054794,120]
[320722458,1711534958559,-500.0,0.00054794,120]
[320722459,1711534958583,-504.21,0.00054794,120]
[320722460,1711534958606,-2173.89,0.00054794,120]
[320722461,1711534958631,-500.0,0.00054794,120]
[320722462,1711534958656,-5726.36,0.00054794,120]
[320722463,1711534958679,-868.72,0.00054794,120]
[320722464,1711534958702,-500.0,0.00054794,120]
[320722465,1711534958726,-500.0,0.00054794,120]
[320722466,1711534958751,-1891.94,0.00054794,120]
[320722467,1711534958774,-500.0,0.00054794,120]
[320722468,1711534958797,-500.0,0.00054794,120]
[320722469,1711534958819,-1114.19,0.00054794,120]
[320722470,1711534958843,-3998.04,0.00054794,120]
[320722471,1711534958867,-727.09,0.00054794,120]
[320722472,1711534958889,-508.48938092,0.00054794,120]
[320722473,1711534958911,-86174.75,0.00054794,120]
[320722474,1711534958934,-500.0,0.00054794,120]
[320722475,1711534958956,-2146.44,0.00054794,120]
[320722476,1711534958983,-500.0,0.00054794,120]
[320722477,1711534959007,-19934.51,0.00054794,120]
[320722478,1711534959029,-768.13,0.00054794,120]
[320722479,1711534959053,-1901.48,0.00054794,120]
[320722480,1711534959082,-503.07,0.00054794,120]
[320722481,1711534959106,-1222.56,0.00054794,120]
[320722482,1711534959130,-500.0,0.00054794,120]
[320722483,1711534959153,-1549.03,0.00054794,120]
[320722484,1711534959175,-151.0,0.00054794,120]
[320722485,1711534959198,-570.44,0.00054794,120]
[320722486,1711534959221,-4318.14,0.00054794,120]
[320722487,1711534959245,-500.0,0.00054794,120]
[320722488,1711534959269,-510.96,0.00054794,120]
[320722489,1711534959295,-4365.22,0.00054794,120]
[320722490,1711534959317,-529.2,0.00054794,120]
[320722491,1711534959340,-151.0,0.00054794,120]
[320722492,1711534959364,-12269.33,0.00054794,120]
[320722493,1711534959547,-500.0,0.00054794,120]
[320722494,1711534959572,-151.0,0.00054794,120]
[320722495,1711534959596,-500.0,0.00054794,120]
[320722496,1711534959619,-500.0,0.00054794,120]
[320722497,1711534959642,-215.52844488,0.00054794,120]
[320722498,1711534959665,-500.0,0.00054794,120]
[320722499,1711534959688,-533.77,0.00054794,120]
[320722500,1711534959713,-500.0,0.00054794,120]
[320722501,1711534959736,-500.0,0.00054794,120]
[320722502,1711534959759,-753.61,0.00054794,120]
[320722503,1711534959782,-1574.99,0.00054794,120]
[320722504,1711534959806,-3755.47,0.00054794,120]
[320722505,1711534959830,-500.0,0.00054794,120]
[320722506,1711534959853,-500.0,0.00054794,120]
[320722507,1711534959876,-500.0,0.00054794,120]
[320722508,1711534959898,-500.0,0.00054794,120]
[320722509,1711534959921,-151.0,0.00054794,120]
[320722510,1711534959944,-1973.27,0.00054794,120]
[320722511,1711534959967,-500.0,0.00054794,120]
[320722512,1711534959995,-5200.4,0.00054794,120]
[320722513,1711534960018,-500.0,0.00054794,120]
[320722514,1711534960048,-500.0,0.00054794,120]
[320722515,1711534960074,-772.53,0.00054794,120]
[320722516,1711534960100,-500.0,0.00054794,120]
[320722517,1711534960127,-3176.65,0.00054794,120]
[320722518,1711534960152,-500.0,0.00054794,120]
[320722519,1711534960177,-500.0,0.00054794,120]
[320722520,1711534960203,-528.01654698,0.00054794,120]
[320722521,1711534960229,-500.0,0.00054794,120]
[320722522,1711534960255,-440.12,0.00054794,120]
[320722523,1711534960282,-500.0,0.00054794,120]
[320722524,1711534960306,-603.48,0.00054794,120]
[320722525,1711534960330,-500.0,0.00054794,120]
[320722526,1711534960352,-606.03,0.00054794,120]
[320722527,1711534960374,-500.0,0.00054794,120]
[320722528,1711534960397,-1510.54,0.00054794,120]
[320722529,1711534960420,-1744.62,0.00054794,120]
[320722530,1711534960444,-47861.67,0.00054794,120]
[320722531,1711534960469,-1300.37,0.00054794,120]
[320722532,1711534960493,-500.0,0.00054794,120]
[320722533,1711534960517,-2251.48,0.00054794,120]
[320722534,1711534960543,-500.0,0.00054794,120]
[320722535,1711534960566,-4652.81,0.00054794,120]
[320722536,1711534960590,-500.0,0.00054794,120]
[320722537,1711534960614,-500.0,0.00054794,120]
[320722538,1711534960637,-502.07744116,0.00054794,120]
[320722539,1711534960661,-648.98,0.00054794,120]
[320722540,1711534960685,-848.2,0.00054794,120]
[320722541,1711534960709,-568.15,0.00054794,120]
[320722542,1711534960733,-500.0,0.00054794,120]
[320722543,1711534960757,-1334.71,0.00054794,120]
[320722544,1711534960782,-514.25,0.00054794,120]
[320722545,1711534960806,-500.0,0.00054794,120]
[320722546,1711534960829,-1099.08,0.00054794,120]
[320722547,1711534960857,-2283.26,0.00054794,120]
[320722548,1711534960879,-500.0,0.00054794,120]
[320722549,1711534960903,-500.0,0.00054794,120]
[320722550,1711534960926,-500.0,0.00054794,120]
[320722551,1711534960951,-1139.26,0.00054794,120]
[320722552,1711534960978,-500.0,0.00054794,120]
[320722553,1711534961001,-500.0,0.00054794,120]
[320722554,1711534961026,-500.0,0.00054794,120]
[320722555,1711534961052,-672.71,0.00054794,120]
[320722556,1711534961086,-871.74,0.00054794,120]
[320722557,1711534961111,-1531.76,0.00054794,120]
[320722558,1711534961135,-500.0,0.00054794,120]
[320722559,1711534961160,-4988.33,0.00054794,120]
[320722560,1711534961182,-1773.8,0.00054794,120]
[320722561,1711534961207,-8364.73,0.00054794,120]
[320722562,1711534961232,-4456.64,0.00054794,120]
[320722563,1711534961257,-500.0,0.00054794,120]
[320722564,1711534961282,-500.0,0.00054794,120]
[320722565,1711534961305,-5038.49,0.00054794,120]
[320722566,1711534961328,-151.0,0.00054794,120]
[320722567,1711534961355,-5336.71,0.00054794,120]
[320722568,1711534961378,-500.0,0.00054794,120]
[320722569,1711534961401,-500.0,0.00054794,120]
[320722570,1711534961425,-500.0,0.00054794,120]
[320722571,1711534961449,-31924.21,0.00054794,120]
[320722572,1711534961473,-1025.73,0.00054794,120]
[320722573,1711534961499,-5717.22,0.00054794,120]
[320722574,1711534961524,-1085.78,0.00054794,120]
[320722575,1711534961548,-934.74,0.00054794,120]
[320722576,1711534961573,-762.85,0.00054794,120]
[320722577,1711534961597,-709.18,0.00054794,120]
[320722578,1711534961622,-500.0,0.00054794,120]
[320722579,1711534961646,-228.979437,0.00054794,120]
[320722580,1711534961670,-631.08,0.00054794,120]
[320722581,1711534961694,-151.0,0.00054794,120]
[320722582,1711534961717,-4073.18,0.00054794,120]
[320722583,1711534961741,-500.0,0.00054794,120]
[320722584,1711534961764,-6957.97,0.00054794,120]
[320722585,1711534961789,-51066.93,0.00054794,120]
[320722586,1711534961812,-500.0,0.00054794,120]
[320722587,1711534961836,-934.59,0.00054794,120]
[320722588,1711534961861,-1027.3,0.00054794,120]
[320722589,1711534961885,-1400.16,0.00054794,120]
[320722590,1711534961910,-4710.46,0.00054794,120]
[320722591,1711534961934,-500.0,0.00054794,120]
[320722592,1711534961958,-500.0,0.00054794,120]
[320722593,1711534961981,-1857.46,0.00054794,120]
[320722594,1711534962009,-500.0,0.00054794,120]
[320722595,1711534962034,-151.0,0.00054794,120]
[320722596,1711534962058,-500.0,0.00054794,120]
[320722597,1711534962083,-624.4,0.00054794,120]
[320722598,1711534962314,-2090.59,0.00054794,120]
[320722599,1711534962338,-1121.59,0.00054794,120]
[320722600,1711534962361,-500.0,0.00054794,120]
[320722601,1711534962384,-8690.1,0.00054794,120]
[320722602,1711534962407,-151.0,0.00054794,120]
[320722603,1711534962430,-2367.03,0.00054794,120]
[320722604,1711534962455,-1161.96,0.00054794,120]
[320722605,1711534962478,-774.01,0.00054794,120]
[320722606,1711534962502,-926.23,0.00054794,120]
[320722607,1711534962525,-4002.78,0.00054794,120]
[320722608,1711534962547,-517.02,0.00054794,120]
[320722609,1711534962570,-151.0,0.00054794,30]
[320722610,1711534962594,-500.0,0.00054794,120]
[320722611,1711534962618,-502.78,0.00054794,120]
[320722612,1711534962642,-4411.73,0.00054794,120]
[320722613,1711534962665,-500.0,0.00054794,120]
[320722614,1711534962689,-2115.21,0.00054794,120]
[320722615,1711534962715,-1013.06,0.00054794,120]
[320722616,1711534962738,-844.73,0.00054794,120]
[320722617,1711534962761,-936.08,0.00054794,120]
[320722618,1711534962787,-14872.86,0.00054794,120]
[320722619,1711534962811,-574.02,0.00054794,120]